[Event "Titled Tuesday Blitz May 10 Early 2022"]
[White "Kadric, Denis"]
[Black "Martinez Alcantara, Jose Eduardo"]
[WhiteFideId "14403803"]
[BlackFideId "3805662"]
[WhiteElo "2657"]
[BlackElo "2690"]
[Result "1-0"]
[Round "03"]
[TimeControl "180+1"]
[Date "2022.05.10"]
[WhiteClock "0:00:07"]
[BlackClock "0:01:40"]

1. e4 {[%clk 0:03:00]}  c5 {[%clk 0:02:59]} 2. Nc3 {[%clk 0:02:59]}  d6 {[%clk 0:03:00]} 3. f4 {[%clk 0:02:59]}  g6 {[%clk 0:02:59]} 4. d4 {[%clk 0:02:59]}  Bg7 {[%clk 0:03:00]} 5. dxc5 {[%clk 0:02:58]}  Qa5 {[%clk 0:02:58]} 6. cxd6 {[%clk 0:02:58]}  Nf6 {[%clk 0:02:46]} 7. dxe7 {[%clk 0:02:49]}  Nc6 {[%clk 0:02:46]} 8. Bd2 {[%clk 0:02:41]}  Qb6 {[%clk 0:02:41]} 9. Bb5 {[%clk 0:02:13]}  Bd7 {[%clk 0:02:18]} 10. Nf3 {[%clk 0:02:05]}  Nxe7 {[%clk 0:02:17]} 11. Qe2 {[%clk 0:01:56]}  a6 {[%clk 0:02:06]} 12. Bxd7+ {[%clk 0:01:52]}  Nxd7 {[%clk 0:02:07]} 13. O-O-O {[%clk 0:01:45]}  Rc8 {[%clk 0:02:03]} 14. e5 {[%clk 0:01:41]}  O-O {[%clk 0:01:59]} 15. Be3 {[%clk 0:01:34]}  Qc6 {[%clk 0:01:59]} 16. Nd4 {[%clk 0:01:33]}  Qc7 {[%clk 0:02:00]} 17. h4 {[%clk 0:01:26]}  Nb6 {[%clk 0:01:58]} 18. h5 {[%clk 0:01:21]}  Nc4 {[%clk 0:01:59]} 19. hxg6 {[%clk 0:01:21]}  hxg6 {[%clk 0:01:58]} 20. g4 {[%clk 0:00:41]}  Nxb2 {[%clk 0:01:58]} 21. Ne4 {[%clk 0:00:15]}  Nd5 {[%clk 0:01:42]} 22. Kxb2 {[%clk 0:00:10]}  Qa5 {[%clk 0:01:43]} 23. Nb3 {[%clk 0:00:10]}  Qb4 {[%clk 0:01:40]} 24. Rxd5 {[%clk 0:00:09]}  Qxe4 {[%clk 0:01:41]} 25. Rhd1 {[%clk 0:00:08]}  Qb4 {[%clk 0:01:40]} 26. Qd2 {[%clk 0:00:07]}  g5 {[%clk 0:01:40]} 27. Qxb4 {[%clk 0:00:07]} 1-0


[Site "https://www.chess.com"]

[Event "Titled Tuesday Blitz May 10 Early 2022"]
[White "Karacsonyi, Gellert"]
[Black "Kozak, Adam"]
[WhiteFideId "764620"]
[BlackFideId "753246"]
[WhiteElo "2187"]
[BlackElo "2459"]
[Result "1-0"]
[Round "03"]
[TimeControl "180+1"]
[Date "2022.05.10"]
[WhiteClock "0:00:32"]
[BlackClock "0:00:01"]

1. e4 {[%clk 0:03:00]}  c5 {[%clk 0:02:56]} 2. Nf3 {[%clk 0:03:00]}  d6 {[%clk 0:02:56]} 3. d4 {[%clk 0:03:00]}  cxd4 {[%clk 0:02:57]} 4. Nxd4 {[%clk 0:03:01]}  Nf6 {[%clk 0:02:57]} 5. Nc3 {[%clk 0:03:02]}  e6 {[%clk 0:02:57]} 6. Be3 {[%clk 0:02:53]}  Bd7 {[%clk 0:02:56]} 7. f4 {[%clk 0:02:53]}  Nc6 {[%clk 0:02:56]} 8. Qf3 {[%clk 0:02:52]}  Be7 {[%clk 0:02:47]} 9. O-O-O {[%clk 0:02:51]}  a6 {[%clk 0:02:43]} 10. h3 {[%clk 0:02:48]}  Nxd4 {[%clk 0:02:37]} 11. Bxd4 {[%clk 0:02:47]}  Bc6 {[%clk 0:02:38]} 12. g4 {[%clk 0:02:45]}  O-O {[%clk 0:02:36]} 13. g5 {[%clk 0:02:44]}  Nd7 {[%clk 0:02:36]} 14. h4 {[%clk 0:02:41]}  b5 {[%clk 0:02:33]} 15. Bd3 {[%clk 0:02:34]}  b4 {[%clk 0:02:32]} 16. Ne2 {[%clk 0:02:34]}  Qa5 {[%clk 0:02:25]} 17. Kb1 {[%clk 0:02:33]}  Nc5 {[%clk 0:02:26]} 18. h5 {[%clk 0:02:28]}  Nxd3 {[%clk 0:01:39]} 19. cxd3 {[%clk 0:02:21]}  e5 {[%clk 0:01:27]} 20. fxe5 {[%clk 0:01:57]}  dxe5 {[%clk 0:01:27]} 21. Qf5 {[%clk 0:01:57]}  Ba4 {[%clk 0:00:37]} 22. Rd2 {[%clk 0:01:23]}  b3 {[%clk 0:00:36]} 23. Bc3 {[%clk 0:01:22]}  bxa2+ {[%clk 0:00:35]} 24. Ka1 {[%clk 0:01:22]}  Qb5 {[%clk 0:00:12]} 25. g6 {[%clk 0:01:04]}  f6 {[%clk 0:00:05]} 26. h6 {[%clk 0:00:58]}  gxh6 {[%clk 0:00:04]} 27. Rxh6 {[%clk 0:00:38]}  Bc5 {[%clk 0:00:01]} 28. Qe6+ {[%clk 0:00:31]}  Kg7 {[%clk 0:00:01]} 29. Rxh7+ {[%clk 0:00:31]}  Kxg6 {[%clk 0:00:01]} 30. Qf5# {[%clk 0:00:32]} 1-0


[Site "https://www.chess.com"]

[Event "Titled Tuesday Blitz May 10 Early 2022"]
[White "Kazarian, Anna-Maja"]
[Black "Arias, Juan Cruz"]
[WhiteFideId "1033689"]
[BlackFideId "118540"]
[WhiteElo "2004"]
[BlackElo "2091"]
[Result "0-1"]
[Round "03"]
[TimeControl "180+1"]
[Date "2022.05.11"]
[WhiteClock "0:00:03"]
[BlackClock "0:01:09"]

1. e4 {[%clk 0:03:00]}  c6 {[%clk 0:02:58]} 2. d4 {[%clk 0:03:00]}  d5 {[%clk 0:02:58]} 3. exd5 {[%clk 0:03:00]}  cxd5 {[%clk 0:02:58]} 4. c4 {[%clk 0:03:01]}  Nf6 {[%clk 0:02:57]} 5. Nc3 {[%clk 0:03:02]}  Nc6 {[%clk 0:02:57]} 6. Nf3 {[%clk 0:03:02]}  Bg4 {[%clk 0:02:56]} 7. cxd5 {[%clk 0:03:01]}  Nxd5 {[%clk 0:02:56]} 8. Be2 {[%clk 0:03:01]}  e6 {[%clk 0:02:56]} 9. O-O {[%clk 0:03:00]}  Be7 {[%clk 0:02:55]} 10. h3 {[%clk 0:03:00]}  Bh5 {[%clk 0:02:53]} 11. Qb3 {[%clk 0:02:38]}  Nb6 {[%clk 0:02:46]} 12. Rd1 {[%clk 0:02:26]}  Bxf3 {[%clk 0:02:21]} 13. Bxf3 {[%clk 0:02:10]}  Nxd4 {[%clk 0:02:21]} 14. Rxd4 {[%clk 0:01:56]}  Qxd4 {[%clk 0:02:22]} 15. Be3 {[%clk 0:01:46]}  Qb4 {[%clk 0:02:20]} 16. Bxb7 {[%clk 0:01:34]}  Rd8 {[%clk 0:02:19]} 17. Bc6+ {[%clk 0:01:26]}  Kf8 {[%clk 0:02:19]} 18. Qc2 {[%clk 0:01:22]}  g6 {[%clk 0:01:54]} 19. a3 {[%clk 0:01:01]}  Qc4 {[%clk 0:01:51]} 20. Bf3 {[%clk 0:00:54]}  Kg7 {[%clk 0:01:48]} 21. Re1 {[%clk 0:00:49]}  Bf6 {[%clk 0:01:44]} 22. Be2 {[%clk 0:00:45]}  Qc7 {[%clk 0:01:20]} 23. Qc1 {[%clk 0:00:38]}  h5 {[%clk 0:01:19]} 24. Bf4 {[%clk 0:00:25]}  e5 {[%clk 0:01:17]} 25. Bg3 {[%clk 0:00:16]}  Nd5 {[%clk 0:01:17]} 26. Ne4 {[%clk 0:00:06]}  Qxc1 {[%clk 0:01:17]} 27. Rxc1 {[%clk 0:00:07]}  h4 {[%clk 0:01:17]} 28. Nxf6 {[%clk 0:00:05]}  hxg3 {[%clk 0:01:15]} 29. Nxd5 {[%clk 0:00:03]}  gxf2+ {[%clk 0:01:16]} 30. Kxf2 {[%clk 0:00:04]}  Rxd5 {[%clk 0:01:16]} 31. Rc7 {[%clk 0:00:05]}  Rhd8 {[%clk 0:01:16]} 32. Bc4 {[%clk 0:00:04]}  R5d7 {[%clk 0:01:15]} 33. Rc5 {[%clk 0:00:04]}  f6 {[%clk 0:01:14]} 34. b4 {[%clk 0:00:04]}  Re8 {[%clk 0:01:12]} 35. Be2 {[%clk 0:00:04]}  Ree7 {[%clk 0:01:13]} 36. b5 {[%clk 0:00:04]}  Rc7 {[%clk 0:01:14]} 37. Rd5 {[%clk 0:00:04]}  Red7 {[%clk 0:01:14]} 38. Bf3 {[%clk 0:00:03]}  Rxd5 {[%clk 0:01:13]} 39. Bxd5 {[%clk 0:00:04]}  f5 {[%clk 0:01:13]} 40. a4 {[%clk 0:00:04]}  Kf6 {[%clk 0:01:13]} 41. a5 {[%clk 0:00:04]}  Rc5 {[%clk 0:01:13]} 42. Bc6 {[%clk 0:00:03]}  Rc2+ {[%clk 0:01:13]} 43. Ke3 {[%clk 0:00:04]}  Rb2 {[%clk 0:01:14]} 44. Kd3 {[%clk 0:00:03]}  Ke6 {[%clk 0:01:14]} 45. Kc3 {[%clk 0:00:04]}  Ra2 {[%clk 0:01:14]} 46. b6 {[%clk 0:00:03]}  axb6 {[%clk 0:01:14]} 47. axb6 {[%clk 0:00:03]}  Kd6 {[%clk 0:01:14]} 48. b7 {[%clk 0:00:03]}  Kc7 {[%clk 0:01:14]} 49. Bd5 {[%clk 0:00:03]}  Rf2 {[%clk 0:01:09]} 0-1


[Site "https://www.chess.com"]

[Event "Titled Tuesday Blitz May 10 Early 2022"]
[White "Keller, Peter"]
[Black "Krstulovic, Alex"]
[WhiteFideId "1272105"]
[BlackFideId "760056"]
[WhiteElo "2275"]
[BlackElo "2193"]
[Result "1-0"]
[Round "03"]
[TimeControl "180+1"]
[Date "2022.05.11"]
[WhiteClock "0:00:14"]
[BlackClock "0:00:08"]

1. e4 {[%clk 0:02:00]}  c5 {[%clk 0:02:59]} 2. c3 {[%clk 0:01:57]}  Nf6 {[%clk 0:02:53]} 3. e5 {[%clk 0:01:54]}  Nd5 {[%clk 0:02:52]} 4. Nf3 {[%clk 0:01:55]}  e6 {[%clk 0:02:47]} 5. d4 {[%clk 0:01:46]}  cxd4 {[%clk 0:02:46]} 6. cxd4 {[%clk 0:01:44]}  d6 {[%clk 0:02:47]} 7. Bc4 {[%clk 0:01:44]}  Bd7 {[%clk 0:02:45]} 8. O-O {[%clk 0:01:25]}  Bc6 {[%clk 0:02:44]} 9. Nc3 {[%clk 0:01:25]}  Nxc3 {[%clk 0:02:40]} 10. bxc3 {[%clk 0:01:24]}  Nd7 {[%clk 0:02:40]} 11. d5 {[%clk 0:01:09]}  exd5 {[%clk 0:02:36]} 12. Bxd5 {[%clk 0:01:06]}  dxe5 {[%clk 0:02:32]} 13. Ng5 {[%clk 0:00:50]}  Bxd5 {[%clk 0:02:17]} 14. Qxd5 {[%clk 0:00:50]}  Qf6 {[%clk 0:02:08]} 15. Rd1 {[%clk 0:00:44]}  Rd8 {[%clk 0:02:07]} 16. Be3 {[%clk 0:00:39]}  Be7 {[%clk 0:02:02]} 17. Qxb7 {[%clk 0:00:29]}  Qf5 {[%clk 0:01:48]} 18. Rd2 {[%clk 0:00:22]}  Bxg5 {[%clk 0:01:37]} 19. Bxg5 {[%clk 0:00:23]}  Qxg5 {[%clk 0:01:36]} 20. Rad1 {[%clk 0:00:24]}  Qe7 {[%clk 0:01:18]} 21. c4 {[%clk 0:00:24]}  Qe6 {[%clk 0:00:54]} 22. c5 {[%clk 0:00:23]}  O-O {[%clk 0:00:45]} 23. Rxd7 {[%clk 0:00:22]}  Rxd7 {[%clk 0:00:43]} 24. Qxd7 {[%clk 0:00:23]}  Qxa2 {[%clk 0:00:43]} 25. c6 {[%clk 0:00:23]}  Qc2 {[%clk 0:00:37]} 26. c7 {[%clk 0:00:22]}  h6 {[%clk 0:00:26]} 27. h3 {[%clk 0:00:23]}  Kh7 {[%clk 0:00:20]} 28. Qd8 {[%clk 0:00:23]}  e4 {[%clk 0:00:08]} 29. Kh2 {[%clk 0:00:14]} 1-0


[Site "https://www.chess.com"]

[Event "Titled Tuesday Blitz May 10 Early 2022"]
[White "Keymer, Vincent"]
[Black "Jarovinsky, Alexey"]
[WhiteFideId "12940690"]
[BlackFideId "14115131"]
[WhiteElo "2548"]
[BlackElo "2446"]
[Result "1-0"]
[Round "03"]
[TimeControl "180+1"]
[Date "2022.05.10"]
[WhiteClock "0:00:06"]
[BlackClock "0:00:03"]

1. Nf3 {[%clk 0:03:00]}  Nc6 {[%clk 0:03:00]} 2. d4 {[%clk 0:03:00]}  d6 {[%clk 0:03:00]} 3. g3 {[%clk 0:02:56]}  e5 {[%clk 0:02:56]} 4. dxe5 {[%clk 0:02:55]}  Nxe5 {[%clk 0:02:56]} 5. Bg2 {[%clk 0:02:41]}  Nxf3+ {[%clk 0:02:53]} 6. exf3 {[%clk 0:02:42]}  Nf6 {[%clk 0:02:46]} 7. O-O {[%clk 0:02:42]}  Be7 {[%clk 0:02:47]} 8. f4 {[%clk 0:02:29]}  O-O {[%clk 0:02:46]} 9. c4 {[%clk 0:02:28]}  c6 {[%clk 0:02:45]} 10. Nc3 {[%clk 0:02:23]}  Be6 {[%clk 0:02:44]} 11. Qd3 {[%clk 0:02:18]}  Qa5 {[%clk 0:02:27]} 12. Bd2 {[%clk 0:02:04]}  Qc5 {[%clk 0:02:24]} 13. b3 {[%clk 0:02:02]}  d5 {[%clk 0:02:18]} 14. cxd5 {[%clk 0:02:01]}  Nxd5 {[%clk 0:02:17]} 15. Nxd5 {[%clk 0:01:36]}  Bxd5 {[%clk 0:02:17]} 16. Rac1 {[%clk 0:01:36]}  Qd6 {[%clk 0:02:14]} 17. Bxd5 {[%clk 0:01:36]}  cxd5 {[%clk 0:02:10]} 18. Be3 {[%clk 0:01:29]}  Rfd8 {[%clk 0:02:04]} 19. Rfd1 {[%clk 0:01:24]}  Bf6 {[%clk 0:01:59]} 20. Bd4 {[%clk 0:01:13]}  Bxd4 {[%clk 0:01:57]} 21. Qxd4 {[%clk 0:01:14]}  Qa6 {[%clk 0:01:45]} 22. a4 {[%clk 0:01:07]}  Rd7 {[%clk 0:01:36]} 23. Rc5 {[%clk 0:01:03]}  Rad8 {[%clk 0:01:34]} 24. Qe5 {[%clk 0:00:55]}  Qe6 {[%clk 0:01:31]} 25. Qxe6 {[%clk 0:00:51]}  fxe6 {[%clk 0:01:32]} 26. Kf1 {[%clk 0:00:52]}  Re8 {[%clk 0:01:25]} 27. h4 {[%clk 0:00:42]}  Kf7 {[%clk 0:01:23]} 28. Rd3 {[%clk 0:00:41]}  Kf6 {[%clk 0:01:10]} 29. Ke2 {[%clk 0:00:38]}  e5 {[%clk 0:01:10]} 30. fxe5+ {[%clk 0:00:34]}  Rxe5+ {[%clk 0:01:10]} 31. Kf3 {[%clk 0:00:27]}  Ke6 {[%clk 0:01:07]} 32. g4 {[%clk 0:00:25]}  Kd6 {[%clk 0:01:04]} 33. Rc8 {[%clk 0:00:25]}  Rf7+ {[%clk 0:00:58]} 34. Kg3 {[%clk 0:00:25]}  Rd7 {[%clk 0:00:50]} 35. h5 {[%clk 0:00:23]}  h6 {[%clk 0:00:50]} 36. f3 {[%clk 0:00:21]}  a6 {[%clk 0:00:49]} 37. Rf8 {[%clk 0:00:21]}  Kc5 {[%clk 0:00:42]} 38. Kf4 {[%clk 0:00:20]}  Re6 {[%clk 0:00:38]} 39. Kf5 {[%clk 0:00:20]}  Rc6 {[%clk 0:00:33]} 40. Kf4 {[%clk 0:00:15]}  Kb4 {[%clk 0:00:30]} 41. Rf5 {[%clk 0:00:05]}  d4 {[%clk 0:00:28]} 42. Ke4 {[%clk 0:00:05]}  Re6+ {[%clk 0:00:17]} 43. Re5 {[%clk 0:00:04]}  Red6 {[%clk 0:00:17]} 44. f4 {[%clk 0:00:04]}  b5 {[%clk 0:00:12]} 45. axb5 {[%clk 0:00:04]}  axb5 {[%clk 0:00:13]} 46. g5 {[%clk 0:00:04]}  Rd8 {[%clk 0:00:12]} 47. g6 {[%clk 0:00:04]}  R8d7 {[%clk 0:00:11]} 48. f5 {[%clk 0:00:04]}  Ka3 {[%clk 0:00:08]} 49. Rxb5 {[%clk 0:00:04]}  Kb2 {[%clk 0:00:07]} 50. Rc5 {[%clk 0:00:04]}  Rd8 {[%clk 0:00:06]} 51. b4 {[%clk 0:00:04]}  Rb6 {[%clk 0:00:05]} 52. b5 {[%clk 0:00:05]}  Re8+ {[%clk 0:00:05]} 53. Re5 {[%clk 0:00:05]}  Rxe5+ {[%clk 0:00:04]} 54. Kxe5 {[%clk 0:00:06]}  Rxb5+ {[%clk 0:00:05]} 55. Ke4 {[%clk 0:00:06]}  Rb7 {[%clk 0:00:03]} 56. f6 {[%clk 0:00:06]} 1-0


[Site "https://www.chess.com"]

[Event "Titled Tuesday Blitz May 10 Early 2022"]
[White "Kwon, Sehyun"]
[Black "Ismayil, Malak"]
[WhiteFideId "13203088"]
[BlackFideId "13412604"]
[WhiteElo "1778"]
[BlackElo "1879"]
[Result "1-0"]
[Round "03"]
[TimeControl "180+1"]
[Date "2022.05.11"]
[WhiteClock "0:00:14"]
[BlackClock "0:00:02"]

1. Nf3 {[%clk 0:03:00]}  Nf6 {[%clk 0:02:58]} 2. b3 {[%clk 0:03:01]}  e6 {[%clk 0:02:58]} 3. Bb2 {[%clk 0:03:02]}  d6 {[%clk 0:02:50]} 4. d4 {[%clk 0:03:01]}  Be7 {[%clk 0:02:43]} 5. Nbd2 {[%clk 0:03:02]}  O-O {[%clk 0:02:43]} 6. e4 {[%clk 0:03:02]}  Nc6 {[%clk 0:02:44]} 7. Bd3 {[%clk 0:03:03]}  Re8 {[%clk 0:02:44]} 8. a3 {[%clk 0:03:03]}  Bf8 {[%clk 0:02:44]} 9. O-O {[%clk 0:03:03]}  e5 {[%clk 0:02:44]} 10. h3 {[%clk 0:03:01]}  g6 {[%clk 0:02:39]} 11. Re1 {[%clk 0:03:01]}  Bg7 {[%clk 0:02:39]} 12. dxe5 {[%clk 0:03:00]}  dxe5 {[%clk 0:02:37]} 13. Nc4 {[%clk 0:02:59]}  Nh5 {[%clk 0:02:35]} 14. Bf1 {[%clk 0:02:57]}  Qe7 {[%clk 0:02:26]} 15. Ne3 {[%clk 0:02:56]}  Be6 {[%clk 0:02:24]} 16. Nd5 {[%clk 0:02:56]}  Qd6 {[%clk 0:02:20]} 17. a4 {[%clk 0:02:53]}  Rad8 {[%clk 0:01:59]} 18. Ba3 {[%clk 0:02:52]}  Qd7 {[%clk 0:01:58]} 19. c4 {[%clk 0:02:53]}  Nd4 {[%clk 0:01:56]} 20. Nxd4 {[%clk 0:02:52]}  exd4 {[%clk 0:01:57]} 21. Be2 {[%clk 0:01:44]}  c6 {[%clk 0:01:42]} 22. Bxh5 {[%clk 0:01:30]}  cxd5 {[%clk 0:01:41]} 23. exd5 {[%clk 0:01:30]}  Bxh3 {[%clk 0:01:15]} 24. Bf3 {[%clk 0:01:15]}  Bf5 {[%clk 0:00:52]} 25. Qd2 {[%clk 0:01:15]}  Bg4 {[%clk 0:00:41]} 26. Be4 {[%clk 0:01:08]}  Bf5 {[%clk 0:00:31]} 27. Bd3 {[%clk 0:00:51]}  h5 {[%clk 0:00:23]} 28. Bb2 {[%clk 0:00:48]}  Kh7 {[%clk 0:00:22]} 29. Bxf5 {[%clk 0:00:46]}  Qxf5 {[%clk 0:00:20]} 30. Bxd4 {[%clk 0:00:47]}  Bh6 {[%clk 0:00:20]} 31. Qc3 {[%clk 0:00:45]}  Qg4 {[%clk 0:00:14]} 32. Bf6 {[%clk 0:00:41]}  Rc8 {[%clk 0:00:12]} 33. Qd4 {[%clk 0:00:36]}  Qf5 {[%clk 0:00:06]} 34. d6 {[%clk 0:00:34]}  Qd7 {[%clk 0:00:05]} 35. Rad1 {[%clk 0:00:19]}  b6 {[%clk 0:00:05]} 36. Rxe8 {[%clk 0:00:15]}  Rxe8 {[%clk 0:00:05]} 37. Be7 {[%clk 0:00:14]}  Bg7 {[%clk 0:00:05]} 38. Qd5 {[%clk 0:00:15]}  Bf8 {[%clk 0:00:02]} 39. Qxf7+ {[%clk 0:00:15]}  Kh6 {[%clk 0:00:02]} 40. Bxf8+ {[%clk 0:00:13]}  Rxf8 {[%clk 0:00:02]} 41. Qxd7 {[%clk 0:00:14]} 1-0


[Site "https://www.chess.com"]

[Event "Titled Tuesday Blitz May 10 Early 2022"]
[White "Lashkin, Jegor"]
[Black "Shuvalov, Evgenij"]
[WhiteFideId "13907808"]
[BlackFideId "4187237"]
[WhiteElo "2368"]
[BlackElo "2053"]
[Result "1-0"]
[Round "03"]
[TimeControl "180+1"]
[Date "2022.05.11"]
[WhiteClock "0:01:22"]
[BlackClock "0:00:09"]

1. Nf3 {[%clk 0:03:00]}  Nf6 {[%clk 0:02:59]} 2. b3 {[%clk 0:03:01]}  d5 {[%clk 0:02:58]} 3. Bb2 {[%clk 0:03:02]}  Bf5 {[%clk 0:02:58]} 4. e3 {[%clk 0:03:02]}  e6 {[%clk 0:02:58]} 5. Nh4 {[%clk 0:03:02]}  Bg4 {[%clk 0:02:53]} 6. Be2 {[%clk 0:03:03]}  Bxe2 {[%clk 0:02:52]} 7. Qxe2 {[%clk 0:03:03]}  Nbd7 {[%clk 0:02:48]} 8. f4 {[%clk 0:03:04]}  Be7 {[%clk 0:02:43]} 9. Nf3 {[%clk 0:03:04]}  c5 {[%clk 0:02:40]} 10. O-O {[%clk 0:03:05]}  Qc7 {[%clk 0:02:37]} 11. d3 {[%clk 0:03:05]}  O-O {[%clk 0:02:32]} 12. Nbd2 {[%clk 0:03:06]}  Bd6 {[%clk 0:02:29]} 13. c4 {[%clk 0:03:00]}  e5 {[%clk 0:02:23]} 14. fxe5 {[%clk 0:02:54]}  Nxe5 {[%clk 0:02:23]} 15. Nh4 {[%clk 0:02:48]}  Rfe8 {[%clk 0:02:11]} 16. Rxf6 {[%clk 0:02:47]}  gxf6 {[%clk 0:02:12]} 17. Nf5 {[%clk 0:02:46]}  Bf8 {[%clk 0:02:11]} 18. cxd5 {[%clk 0:02:45]}  Qd7 {[%clk 0:02:06]} 19. Rf1 {[%clk 0:02:40]}  Qxd5 {[%clk 0:02:00]} 20. Ne4 {[%clk 0:02:40]}  Qc6 {[%clk 0:01:43]} 21. Qh5 {[%clk 0:02:25]}  Re6 {[%clk 0:01:26]} 22. Rf4 {[%clk 0:01:52]}  Ng6 {[%clk 0:01:23]} 23. Rf3 {[%clk 0:01:52]}  Rxe4 {[%clk 0:01:13]} 24. Rh3 {[%clk 0:01:43]}  h6 {[%clk 0:01:05]} 25. dxe4 {[%clk 0:01:35]}  Qxe4 {[%clk 0:01:05]} 26. Bxf6 {[%clk 0:01:27]}  Qb1+ {[%clk 0:01:03]} 27. Kf2 {[%clk 0:01:28]}  Qc2+ {[%clk 0:00:49]} 28. Kg3 {[%clk 0:01:28]}  Re8 {[%clk 0:00:44]} 29. Nxh6+ {[%clk 0:01:24]}  Bxh6 {[%clk 0:00:19]} 30. Qxh6 {[%clk 0:01:25]}  Rxe3+ {[%clk 0:00:10]} 31. Qxe3 {[%clk 0:01:26]}  Qf5 {[%clk 0:00:09]} 32. Qe8+ {[%clk 0:01:22]}  Nf8 {[%clk 0:00:09]} 33. Rh8# {[%clk 0:01:22]} 1-0


[Site "https://www.chess.com"]

[Event "Titled Tuesday Blitz May 10 Early 2022"]
[White "Lauridsen, Jesper Morch"]
[Black "Wachinger, Guenther"]
[WhiteFideId "1401890"]
[BlackFideId "4604261"]
[WhiteElo "2216"]
[BlackElo "2212"]
[Result "1/2-1/2"]
[Round "03"]
[TimeControl "180+1"]
[Date "2022.05.11"]
[WhiteClock "0:00:03"]
[BlackClock "0:00:58"]

1. e4 {[%clk 0:03:00]}  c5 {[%clk 0:02:59]} 2. Nf3 {[%clk 0:03:00]}  d6 {[%clk 0:02:58]} 3. d4 {[%clk 0:03:00]}  cxd4 {[%clk 0:02:59]} 4. Qxd4 {[%clk 0:03:00]}  Nf6 {[%clk 0:02:59]} 5. Nc3 {[%clk 0:02:59]}  g6 {[%clk 0:02:59]} 6. e5 {[%clk 0:02:55]}  dxe5 {[%clk 0:02:53]} 7. Qxd8+ {[%clk 0:02:53]}  Kxd8 {[%clk 0:02:53]} 8. Nxe5 {[%clk 0:02:53]}  Ke8 {[%clk 0:02:52]} 9. Nb5 {[%clk 0:02:36]}  Na6 {[%clk 0:02:34]} 10. Bc4 {[%clk 0:02:28]}  e6 {[%clk 0:02:28]} 11. Bg5 {[%clk 0:02:17]}  Be7 {[%clk 0:02:27]} 12. Bxf6 {[%clk 0:02:05]}  Bxf6 {[%clk 0:02:26]} 13. Nd6+ {[%clk 0:02:05]}  Ke7 {[%clk 0:02:25]} 14. Nexf7 {[%clk 0:01:41]}  Rf8 {[%clk 0:02:24]} 15. O-O-O {[%clk 0:01:14]}  Rxf7 {[%clk 0:02:23]} 16. Nxf7 {[%clk 0:01:10]}  Kxf7 {[%clk 0:02:24]} 17. Bxa6 {[%clk 0:01:05]}  bxa6 {[%clk 0:02:22]} 18. f4 {[%clk 0:01:01]}  Rb8 {[%clk 0:02:21]} 19. c3 {[%clk 0:00:57]}  Ke7 {[%clk 0:02:20]} 20. Rhe1 {[%clk 0:00:48]}  Bb7 {[%clk 0:02:15]} 21. g3 {[%clk 0:00:46]}  Bf3 {[%clk 0:02:09]} 22. Rd3 {[%clk 0:00:44]}  Bg4 {[%clk 0:02:09]} 23. Rde3 {[%clk 0:00:36]}  Rb6 {[%clk 0:02:00]} 24. h3 {[%clk 0:00:32]}  Bxh3 {[%clk 0:01:49]} 25. Rh1 {[%clk 0:00:32]}  Bf5 {[%clk 0:01:49]} 26. Rxh7+ {[%clk 0:00:32]}  Kd6 {[%clk 0:01:50]} 27. Rxa7 {[%clk 0:00:29]}  e5 {[%clk 0:01:42]} 28. Re1 {[%clk 0:00:16]}  e4 {[%clk 0:01:39]} 29. g4 {[%clk 0:00:12]}  Bxg4 {[%clk 0:01:39]} 30. Rxe4 {[%clk 0:00:12]}  Bf5 {[%clk 0:01:40]} 31. Re1 {[%clk 0:00:11]}  Bh4 {[%clk 0:01:17]} 32. Rd1+ {[%clk 0:00:11]}  Kc6 {[%clk 0:01:12]} 33. Rh7 {[%clk 0:00:10]}  Bg3 {[%clk 0:01:09]} 34. Rd4 {[%clk 0:00:10]}  Bf2 {[%clk 0:01:07]} 35. Rb4 {[%clk 0:00:07]}  Rxb4 {[%clk 0:01:06]} 36. cxb4 {[%clk 0:00:07]}  Be3+ {[%clk 0:01:07]} 37. Kd1 {[%clk 0:00:07]}  Bxf4 {[%clk 0:01:08]} 38. Ra7 {[%clk 0:00:06]}  Kb6 {[%clk 0:01:07]} 39. Ra8 {[%clk 0:00:06]}  Be4 {[%clk 0:01:07]} 40. Rf8 {[%clk 0:00:05]}  Be5 {[%clk 0:01:06]} 41. Re8 {[%clk 0:00:04]}  Bf3+ {[%clk 0:01:06]} 42. Kd2 {[%clk 0:00:05]}  Bxb2 {[%clk 0:01:05]} 43. Re6+ {[%clk 0:00:05]}  Kb5 {[%clk 0:01:05]} 44. a4+ {[%clk 0:00:04]}  Kxa4 {[%clk 0:01:04]} 45. Rxa6+ {[%clk 0:00:04]}  Kxb4 {[%clk 0:01:04]} 46. Rxg6 {[%clk 0:00:03]}  Bc3+ {[%clk 0:01:04]} 47. Kd3 {[%clk 0:00:03]}  Bd5 {[%clk 0:00:56]} 48. Rg4+ {[%clk 0:00:03]}  Kc5 {[%clk 0:00:57]} 49. Kxc3 {[%clk 0:00:02]}  Bc6 {[%clk 0:00:58]} 50. Rg5+ {[%clk 0:00:03]}  Kd6 {[%clk 0:00:59]} 51. Kd4 {[%clk 0:00:03]}  Be8 {[%clk 0:00:58]} 52. Rf5 {[%clk 0:00:03]}  Ke6 {[%clk 0:00:58]} 53. Re5+ {[%clk 0:00:03]}  Kf7 {[%clk 0:00:58]} 54. Rxe8 {[%clk 0:00:03]}  Kxe8 {[%clk 0:00:58]} 1/2-1/2


[Site "https://www.chess.com"]

[Event "Titled Tuesday Blitz May 10 Early 2022"]
[White "Legenia, Artem"]
[Black "Omelja, Artem"]
[WhiteFideId "14136945"]
[BlackFideId "14119846"]
[WhiteElo "1936"]
[BlackElo "2382"]
[Result "1-0"]
[Round "03"]
[TimeControl "180+1"]
[Date "2022.05.11"]
[WhiteClock "0:01:38"]
[BlackClock "0:00:03"]

1. d4 {[%clk 0:02:55]}  d5 {[%clk 0:02:59]} 2. Nf3 {[%clk 0:02:54]}  Nf6 {[%clk 0:02:56]} 3. Bf4 {[%clk 0:02:52]}  c5 {[%clk 0:02:56]} 4. c3 {[%clk 0:02:52]}  Nc6 {[%clk 0:02:55]} 5. e3 {[%clk 0:02:52]}  Qb6 {[%clk 0:02:55]} 6. Qb3 {[%clk 0:02:51]}  c4 {[%clk 0:02:55]} 7. Qc2 {[%clk 0:02:46]}  Bf5 {[%clk 0:02:55]} 8. Qc1 {[%clk 0:02:46]}  Nh5 {[%clk 0:02:43]} 9. Bg3 {[%clk 0:02:45]}  f6 {[%clk 0:02:40]} 10. Be2 {[%clk 0:02:44]}  Nxg3 {[%clk 0:02:39]} 11. hxg3 {[%clk 0:02:44]}  e5 {[%clk 0:02:39]} 12. O-O {[%clk 0:02:38]}  O-O-O {[%clk 0:02:13]} 13. Nbd2 {[%clk 0:02:38]}  h5 {[%clk 0:01:41]} 14. b3 {[%clk 0:02:37]}  cxb3 {[%clk 0:01:38]} 15. axb3 {[%clk 0:02:36]}  e4 {[%clk 0:01:21]} 16. Ne1 {[%clk 0:02:36]}  Qc7 {[%clk 0:01:06]} 17. c4 {[%clk 0:02:34]}  h4 {[%clk 0:01:06]} 18. g4 {[%clk 0:02:28]}  h3 {[%clk 0:01:04]} 19. g3 {[%clk 0:02:22]}  Be6 {[%clk 0:01:01]} 20. cxd5 {[%clk 0:02:19]}  Bxd5 {[%clk 0:01:01]} 21. Kh2 {[%clk 0:02:17]}  Bd6 {[%clk 0:01:00]} 22. Bc4 {[%clk 0:02:16]}  Bxc4 {[%clk 0:00:34]} 23. Qxc4 {[%clk 0:02:16]}  Kb8 {[%clk 0:00:27]} 24. Nxe4 {[%clk 0:02:16]}  Be7 {[%clk 0:00:23]} 25. Nc5 {[%clk 0:02:07]}  Bxc5 {[%clk 0:00:21]} 26. Qxc5 {[%clk 0:02:07]}  Qd7 {[%clk 0:00:20]} 27. Qf5 {[%clk 0:01:49]}  Qf7 {[%clk 0:00:10]} 28. Nd3 {[%clk 0:01:42]}  g6 {[%clk 0:00:08]} 29. Qf4+ {[%clk 0:01:41]}  Ka8 {[%clk 0:00:06]} 30. Qf3 {[%clk 0:01:41]}  Qxb3 {[%clk 0:00:05]} 31. Nc5 {[%clk 0:01:41]}  Qd5 {[%clk 0:00:05]} 32. Qxd5 {[%clk 0:01:38]}  Rxd5 {[%clk 0:00:06]} 33. Rfb1 {[%clk 0:01:39]}  Rb8 {[%clk 0:00:03]} 34. Ne6 {[%clk 0:01:38]}  Rd6 {[%clk 0:00:03]} 35. Nc7# {[%clk 0:01:38]} 1-0


[Site "https://www.chess.com"]